[Event "106th British-ch Major 2019"]
[Site "Torquay"]
[Date "2019.07.31"]
[Round "5.31"]
[White "Tombolis, Christopher"]
[Black "Renshaw, Lucas"]
[Result "1-0"]
[ECO "D63"]
[WhiteElo "1883"]
[BlackElo "1596"]
[Annotator "NA"]
[PlyCount "113"]
[EventDate "2019.07.27"]
[EventType "swiss"]
[EventCountry "GBR"]
[SourceTitle "playchess.com"]
[Source "ChessBase"]
[SourceQuality "1"]
[TimeControl "40/5400+30:1800+30"]

1. d4 {[%emt 0:00:00]} e6 {[%emt 0:00:00]} 2. c4 {[%emt 0:00:00]} d5 {[%emt 0:00:00]} 3. Nc3 {[%emt 0:00:00]} Nf6 {[%emt 0:00:01]} 4. Bg5 {[%emt 0:00:00]} Be7 {[%emt 0:00:10]} 5. Nf3 {[%emt 0:00:00]} Nbd7 {[%emt 0:02:42]} 6. e3 {[%emt 0:00:05]} O-O {[%emt 0:00:10]} 7. Rc1 {[%emt 0:00:05]} b6 {[%emt 0:03:48]} 8. cxd5 {[%emt 0:02:12]} exd5 {[%emt 0:05:10]} 9. Bxf6 {[%emt 0:08:25]} Nxf6 {[%emt 0:01:43]} 10. Ne5 {[%emt 0:00:13]} Bb7 {[%emt 0:11:10]} 11. Bd3 {[%emt 0:01:21]} c5 {[%emt 0:03:48]} 12. O-O {[%emt 0:02:13]} Re8 {[%emt 0:07:14]} 13. Bb5 {[%emt 0:01:33]} Rf8 {[%emt 0:01:30]} 14. Bc6 {[%emt 0:00:13]} Qc8 {[%emt 0:04:09]} 15. Qa4 {[%emt 0:10:47]} Bxc6 {[%emt 0:02:33]} 16. Qxc6 {[%emt 0:00:37]} Qe6 {[%emt 0:06:12]} 17. Qxe6 {[%emt 0:00:35]} fxe6 {[%emt 0:00:06]} 18. Nb5 {[%emt 0:00:05]} Rfc8 {[%emt 0:01:47]} 19. f4 {[%emt 0:04:59]} a6 {[%emt 0:00:59]} 20. Nc3 {[%emt 0:00:18]} b5 {[%emt 0:02:23]} 21. Ne2 {[%emt 0:01:53]} g6 {[%emt 0:04:40]} 22. a3 {[%emt 0:01:14]} c4 {[%emt 0:03:45]} 23. Nc3 {[%emt 0:02:52]} Bd6 {[%emt 0:04:17]} 24. h3 {[%emt 0:02:50]} Bxe5 {[%emt 0:03:26]} 25. fxe5 {[%emt 0:00:20]} Nd7 {[%emt 0:00:32]} 26. e4 {[%emt 0:00:15]} Nxe5 {[%emt 0:10:00]} 27. dxe5 {[%emt 0:00:45]} d4 {[%emt 0:00:08]} 28. Ne2 {[%emt 0:00:20]} d3 {[%emt 0:00:48]} 29. Nd4 {[%emt 0:00:56]} Rc5 {[%emt 0:01:33]} 30. Nxe6 {[%emt 0:00:41]} Rxe5 {[%emt 0:00:58]} 31. Nc7 {[%emt 0:00:07]} Ra7 {[%emt 0:00:55]} 32. Nd5 {[%emt 0:00:14]} Kg7 {[%emt 0:03:05]} 33. Nc3 {[%emt 0:02:24]} a5 {[%emt 0:00:42]} 34. Kh2 {[%emt 0:01:42]} b4 {[%emt 0:03:46]} 35. Nb1 {[%emt 0:02:01]} Rc7 {[%emt 0:03:05]} 36. axb4 {[%emt 0:03:48]} axb4 {[%emt 0:00:18]} 37. Rfd1 {[%emt 0:00:36]} Rec5 {[%emt 0:04:26]} 38. b3 {[%emt 0:02:20]} Kf6 {[%emt 0:04:19]} 39. Rxc4 {[%emt 0:01:17]} Rxc4 {[%emt 0:00:05]} 40. bxc4 {[%emt 0:00:05]} Rxc4 {[%emt 0:00:14]} 41. Rxd3 {[%emt 0:30:24]} Rxe4 {[%emt 0:30:30]} 42. Nd2 {[%emt 0:00:27]} Re7 {[%emt 0:00:00]} 43. Rf3+ {[%emt 0:00:00]} Kg7 {[%emt 0:00:00]} 44. Rb3 {[%emt 0:00:00]} Rb7 {[%emt 0:00:00]} 45. Ne4 {[%emt 0:00:00]} Rb5 {[%emt 0:00:00]} 46. Nc3 {[%emt 0:00:00]} Rc5 {[%emt 0:00:00]} 47. Na2 {[%emt 0:00:00]} Kf6 {[%emt 0:00:00]} 48. Rf3+ {[%emt 0:00:00]} Ke6 {[%emt 0:00:00]} 49. Nxb4 {[%emt 0:00:00]} Rb5 {[%emt 0:00:00]} 50. Nc6 {[%emt 0:00:00]} Kd6 {[%emt 0:00:00]} 51. Nd8 {[%emt 0:00:00]} Ke7 {[%emt 0:00:00]} 52. Nf7 {[%emt 0:00:00]} Ra5 {[%emt 0:00:00]} 53. h4 {[%emt 0:00:00]} Rh5 {[%emt 0:00:00]} 54. g3 {[%emt 0:00:00]} h6 {[%emt 0:00:00]} 55. Nh8 {[%emt 0:00:00]} g5 {[%emt 0:00:00]} 56. Ng6+ {[%emt 0:00:00]} Ke6 {[%emt 0:00:00]} 57. g4 {[%emt 0:00:00]} 1-0

[Event "106th British-ch Major 2019"]
[Site "Torquay"]
[Date "2019.07.31"]
[Round "5.32"]
[White "Lovell, William Pm"]
[Black "Roy, Ali"]
[Result "0-1"]
[ECO "A36"]
[WhiteElo "1777"]
[BlackElo "1871"]
[Annotator "NA"]
[PlyCount "84"]
[EventDate "2019.07.27"]
[EventType "swiss"]
[EventCountry "GBR"]
[SourceTitle "playchess.com"]
[Source "ChessBase"]
[SourceQuality "1"]
[TimeControl "40/5400+30:1800+30"]

1. c4 {[%emt 1:06:21]} Nf6 {[%emt 0:00:15]} 2. g3 {[%emt 0:00:04]} g6 {[%emt 0:00:04]} 3. Bg2 {[%emt 0:00:04]} Bg7 {[%emt 0:00:03]} 4. Nc3 {[%emt 0:00:12]} O-O {[%emt 0:00:32]} 5. e4 {[%emt 0:00:05]} d6 {[%emt 0:04:13]} 6. Nge2 {[%emt 0:00:06]} c5 {[%emt 0:00:21]} 7. O-O {[%emt 0:00:07]} Nc6 {[%emt 0:00:28]} 8. d3 {[%emt 0:00:14]} a6 {[%emt 0:01:10]} 9. h3 {[%emt 0:01:43]} Rb8 {[%emt 0:04:33]} 10. a4 {[%emt 0:00:38]} Bd7 {[%emt 0:01:08]} 11. Be3 {[%emt 0:02:31]} Na5 {[%emt 0:08:17]} 12. Rb1 {[%emt 0:05:11]} b5 {[%emt 0:03:05]} 13. axb5 {[%emt 0:08:13]} axb5 {[%emt 0:02:08]} 14. b3 {[%emt 0:00:32]} b4 {[%emt 0:03:41]} 15. Nd5 {[%emt 0:00:50]} e5 {[%emt 0:08:29]} 16. Ra1 {[%emt 0:03:32]} Nxd5 {[%emt 0:07:59]} 17. cxd5 {[%emt 0:00:43]} f5 {[%emt 0:01:25]} 18. Bc1 {[%emt 0:10:01]} Qb6 {[%emt 0:08:00]} 19. Bb2 {[%emt 0:03:42]} Bb5 {[%emt 0:02:14]} 20. Re1 {[%emt 0:01:06]} fxe4 {[%emt 0:00:50]} 21. dxe4 {[%emt 0:01:19]} c4 {[%emt 0:00:30]} 22. Rf1 {[%emt 0:00:35]} c3 {[%emt 0:00:25]} 23. Bc1 {[%emt 0:00:37]} Bxe2 {[%emt 0:04:43]} 24. Qxe2 {[%emt 0:00:08]} Nxb3 {[%emt 0:00:17]} 25. Be3 {[%emt 0:01:38]} Nd4 {[%emt 0:02:33]} 26. Qd3 {[%emt 0:01:18]} Qb5 {[%emt 0:01:46]} 27. Qxb5 {[%emt 0:01:34]} Rxb5 {[%emt 0:00:53]} 28. Rfb1 {[%emt 0:04:47]} b3 {[%emt 0:08:43]} 29. Bf1 {[%emt 0:00:48]} b2 {[%emt 0:01:36]} 30. Ra2 {[%emt 0:00:59]} Rc5 {[%emt 0:02:28]} 31. Bd3 {[%emt 0:01:07]} Rb8 {[%emt 0:04:18]} 32. Kg2 {[%emt 0:00:19]} c2 {[%emt 0:02:38]} 33. Rbxb2 {[%emt 0:00:28]} Rxb2 {[%emt 0:00:11]} 34. Rxb2 {[%emt 0:00:04]} c1=Q {[%emt 0:00:10]} 35. Bxc1 {[%emt 0:00:05]} Rxc1 {[%emt 0:00:03]} 36. Rb6 {[%emt 0:00:16]} Bf8 {[%emt 0:03:05]} 37. Ra6 {[%emt 0:00:32]} Nb3 {[%emt 0:01:33]} 38. Ra3 {[%emt 0:03:07]} Nc5 {[%emt 0:00:21]} 39. f4 {[%emt 0:01:09]} Rd1 {[%emt 0:02:31]} 40. Be2 {[%emt 0:01:41]} Rd4 {[%emt 0:01:12]} 41. Bf3 {[%emt 0:01:11]} exf4 {[%emt 0:03:22]} 42. gxf4 {[%emt 0:00:13]} Nxe4 {[%emt 0:00:13]} 0-1

[Event "106th British-ch Major 2019"]
[Site "Torquay"]
[Date "2019.07.31"]
[Round "5.33"]
[White "Cowan, Richard M"]
[Black "Sheikh, Anum"]
[Result "0-1"]
[ECO "B04"]
[WhiteElo "1931"]
[BlackElo "1693"]
[Annotator "NA"]
[PlyCount "96"]
[EventDate "2019.07.27"]
[EventType "swiss"]
[EventCountry "GBR"]
[SourceTitle "playchess.com"]
[Source "ChessBase"]
[SourceQuality "1"]
[TimeControl "40/5400+30:1800+30"]

1. e4 {[%emt 0:00:00]} Nf6 {[%emt 0:00:00]} 2. e5 {[%emt 0:00:00]} Nd5 {[%emt 0:00:00]} 3. c4 {[%emt 0:00:00]} Nb6 {[%emt 0:00:00]} 4. d4 {[%emt 0:00:00]} d6 {[%emt 0:00:10]} 5. exd6 {[%emt 0:00:00]} exd6 {[%emt 0:00:06]} 6. Nf3 {[%emt 0:00:04]} Nc6 {[%emt 0:00:08]} 7. Be2 {[%emt 0:05:02]} Be7 {[%emt 0:00:11]} 8. O-O {[%emt 0:00:19]} O-O {[%emt 0:01:13]} 9. Nc3 {[%emt 0:10:58]} Re8 {[%emt 0:02:48]} 10. Be3 {[%emt 0:08:16]} Bf6 {[%emt 0:02:24]} 11. Rc1 {[%emt 0:03:32]} Bf5 {[%emt 0:02:25]} 12. a3 {[%emt 0:05:16]} d5 {[%emt 0:05:19]} 13. Nxd5 {[%emt 0:08:16]} Nxd5 {[%emt 0:01:16]} 14. cxd5 {[%emt 0:00:07]} Qxd5 {[%emt 0:00:05]} 15. Bc4 {[%emt 0:00:11]} Qd7 {[%emt 0:03:33]} 16. b4 {[%emt 0:01:50]} Rad8 {[%emt 0:02:41]} 17. Qb3 {[%emt 0:03:02]} Be4 {[%emt 0:17:53]} 18. Bf4 {[%emt 0:27:14]} Bd5 {[%emt 0:29:51]} 19. Rfd1 {[%emt 0:05:38]} Re7 {[%emt 0:09:52]} 20. h3 {[%emt 0:03:25]} Qf5 {[%emt 0:01:06]} 21. Bxd5 {[%emt 0:01:07]} Qxd5 {[%emt 0:02:11]} 22. Qxd5 {[%emt 0:02:21]} Rxd5 {[%emt 0:00:06]} 23. Rc5 {[%emt 0:00:26]} Red7 {[%emt 0:02:07]} 24. Re1 {[%emt 0:00:46]} h6 {[%emt 0:00:53]} 25. Rxd5 {[%emt 0:02:07]} Rxd5 {[%emt 0:00:07]} 26. Re8+ {[%emt 0:00:36]} Kh7 {[%emt 0:00:06]} 27. Bxc7 {[%emt 0:00:24]} Nxd4 {[%emt 0:00:23]} 28. Nxd4 {[%emt 0:00:42]} Rxd4 {[%emt 0:00:19]} 29. Rb8 {[%emt 0:00:13]} Rd1+ {[%emt 0:00:41]} 30. Kh2 {[%emt 0:00:08]} Rd7 {[%emt 0:00:04]} 31. Bf4 {[%emt 0:00:15]} Bb2 {[%emt 0:02:27]} 32. Ra8 {[%emt 0:04:52]} Bxa3 {[%emt 0:00:23]} 33. Rxa7 {[%emt 0:00:34]} Bxb4 {[%emt 0:00:05]} 34. f3 {[%emt 0:00:50]} Bc5 {[%emt 0:00:17]} 35. Ra5 {[%emt 0:00:15]} b6 {[%emt 0:00:28]} 36. Rb5 {[%emt 0:00:14]} Ra7 {[%emt 0:00:26]} 37. Bd2 {[%emt 0:00:56]} Ra2 {[%emt 0:00:39]} 38. Bf4 {[%emt 0:00:56]} Ra5 {[%emt 0:00:18]} 39. Rb2 {[%emt 0:00:47]} Bd4 {[%emt 0:00:59]} 40. Rb4 {[%emt 0:00:13]} Rd5 {[%emt 0:00:16]} 41. Bc1 {[%emt 0:34:57]} b5 {[%emt 0:30:46]} 42. Bb2 {[%emt 0:00:46]} Bxb2 {[%emt 0:00:55]} 43. Rxb2 {[%emt 0:00:06]} Kg6 {[%emt 0:00:07]} 44. Kg3 {[%emt 0:00:06]} Kf5 {[%emt 0:00:09]} 45. Rb4 {[%emt 0:00:27]} Ke5 {[%emt 0:01:47]} 46. Re4+ {[%emt 0:04:09]} Kd6 {[%emt 0:01:08]} 47. Kf4 {[%emt 0:00:33]} g5+ {[%emt 0:04:47]} 48. Kg4 {[%emt 0:00:07]} f5+ {[%emt 0:00:09]} 0-1

[Event "106th British-ch Major 2019"]
[Site "Torquay"]
[Date "2019.07.31"]
[Round "5.34"]
[White "Forster, James Connor C"]
[Black "Morgan, Jamie"]
[Result "1/2-1/2"]
[ECO "A57"]
[WhiteElo "1831"]
[BlackElo "1894"]
[Annotator "NA"]
[PlyCount "67"]
[EventDate "2019.07.27"]
[EventType "swiss"]
[EventCountry "GBR"]
[SourceTitle "playchess.com"]
[Source "ChessBase"]
[SourceQuality "1"]
[TimeControl "40/5400+30:1800+30"]

1. d4 {[%emt 0:00:00]} Nf6 {[%emt 0:00:00]} 2. c4 {[%emt 0:00:00]} c5 {[%emt 0:00:00]} 3. d5 {[%emt 0:00:10]} b5 {[%emt 0:00:00]} 4. Qc2 {[%emt 0:00:14]} bxc4 {[%emt 0:00:15]} 5. e4 {[%emt 0:00:12]} g6 {[%emt 0:00:29]} 6. Bxc4 {[%emt 0:00:51]} d6 {[%emt 0:00:11]} 7. Nf3 {[%emt 0:01:29]} Bg7 {[%emt 0:00:34]} 8. O-O {[%emt 0:00:52]} O-O {[%emt 0:00:16]} 9. Re1 {[%emt 0:01:07]} Ba6 {[%emt 0:01:06]} 10. Na3 {[%emt 0:01:22]} Nfd7 {[%emt 0:02:11]} 11. Rb1 {[%emt 0:02:57]} Bxc4 {[%emt 0:01:06]} 12. Nxc4 {[%emt 0:00:34]} Nb6 {[%emt 0:00:39]} 13. b3 {[%emt 0:02:17]} N8d7 {[%emt 0:15:12]} 14. Bd2 {[%emt 0:04:25]} Nxc4 {[%emt 0:03:40]} 15. bxc4 {[%emt 0:01:09]} Qc7 {[%emt 0:04:37]} 16. Rb5 {[%emt 0:09:23]} Rfb8 {[%emt 0:11:59]} 17. Reb1 {[%emt 0:02:18]} a6 {[%emt 0:01:30]} 18. Ba5 {[%emt 0:03:59]} Qc8 {[%emt 0:00:35]} 19. R5b3 {[%emt 0:00:19]} Rxb3 {[%emt 0:00:47]} 20. Rxb3 {[%emt 0:02:01]} Rb8 {[%emt 0:01:00]} 21. h3 {[%emt 0:07:06]} Rxb3 {[%emt 0:00:42]} 22. Qxb3 {[%emt 0:02:56]} Qb8 {[%emt 0:01:35]} 23. Kf1 {[%emt 0:07:52]} Qxb3 {[%emt 0:09:45]} 24. axb3 {[%emt 0:00:04]} Bb2 {[%emt 0:04:15]} 25. Ke2 {[%emt 0:03:45]} Ba3 {[%emt 0:03:50]} 26. Ne1 {[%emt 0:06:05]} Bb4 {[%emt 0:12:04]} 27. Bxb4 {[%emt 0:16:43]} cxb4 {[%emt 0:00:07]} 28. Nd3 {[%emt 0:02:49]} a5 {[%emt 0:00:40]} 29. f4 {[%emt 0:01:14]} Nc5 {[%emt 0:02:54]} 30. Nxc5 {[%emt 0:00:56]} dxc5 {[%emt 0:00:03]} 31. e5 {[%emt 0:00:07]} Kf8 {[%emt 0:00:36]} 32. g4 {[%emt 0:02:05]} Ke8 {[%emt 0:04:37]} 33. Kd3 {[%emt 0:01:55]} Kf8 {[%emt 0:00:47]} 34. Kd2 {[%emt 0:01:35]} 1/2-1/2

[Event "106th British-ch Major 2019"]
[Site "Torquay"]
[Date "2019.07.31"]
[Round "5.35"]
[White "Pattni, Kishan"]
[Black "Miller, George I"]
[Result "0-1"]
[ECO "A02"]
[WhiteElo "1608"]
[BlackElo "1891"]
[Annotator "NA"]
[PlyCount "42"]
[EventDate "2019.07.27"]
[EventType "swiss"]
[EventCountry "GBR"]
[SourceTitle "playchess.com"]
[Source "ChessBase"]
[SourceQuality "1"]
[TimeControl "40/5400+30:1800+30"]

1. f4 {[%emt 0:02:40]} e5 {[%emt 0:00:09]} 2. fxe5 {[%emt 0:00:30]} d6 {[%emt 0:00:05]} 3. exd6 {[%emt 0:00:00]} Bxd6 {[%emt 0:00:07]} 4. Nf3 {[%emt 0:00:00]} Nf6 {[%emt 0:01:56]} 5. g3 {[%emt 0:01:30]} h5 {[%emt 0:03:37]} 6. d3 {[%emt 0:01:15]} Ng4 {[%emt 0:02:50]} 7. Bf4 {[%emt 0:01:35]} Nc6 {[%emt 0:01:30]} 8. Bxd6 {[%emt 0:01:09]} Qxd6 {[%emt 0:00:12]} 9. Qd2 {[%emt 0:00:55]} h4 {[%emt 0:00:56]} 10. gxh4 {[%emt 0:01:08]} Nce5 {[%emt 0:01:06]} 11. Nxe5 {[%emt 0:00:30]} Qxe5 {[%emt 0:00:30]} 12. Nc3 {[%emt 0:08:05]} Ne3 {[%emt 0:00:25]} 13. d4 {[%emt 0:13:00]} Qf4 {[%emt 0:02:21]} 14. Qd3 {[%emt 0:01:54]} Bf5 {[%emt 0:03:14]} 15. Qb5+ {[%emt 0:00:30]} c6 {[%emt 0:00:30]} 16. Qxb7 {[%emt 0:00:30]} Nxc2+ {[%emt 0:00:30]} 17. Kd1 {[%emt 0:04:22]} Ne3+ {[%emt 0:05:24]} 18. Ke1 {[%emt 0:01:53]} O-O {[%emt 0:02:25]} 19. Qxc6 {[%emt 0:04:03]} Qxh4+ {[%emt 0:02:42]} 20. Kd2 {[%emt 0:00:16]} Qxd4+ {[%emt 0:00:08]} 21. Ke1 {[%emt 0:00:58]} Rac8 0-1

[Event "106th British-ch Major 2019"]
[Site "Torquay"]
[Date "2019.08.01"]
[Round "6.1"]
[White "Hagesaether, Arne"]
[Black "Clarke, Brandon Gi"]
[Result "0-1"]
[ECO "A49"]
[WhiteElo "2046"]
[BlackElo "2433"]
[Annotator "NA"]
[PlyCount "64"]
[EventDate "2019.07.27"]
[EventType "swiss"]
[EventCountry "GBR"]
[SourceTitle "playchess.com"]
[Source "ChessBase"]
[SourceQuality "1"]
[TimeControl "40/5400+30:1800+30"]

1. d4 {[%emt 0:00:00]} Nf6 {[%emt 0:00:00]} 2. Nf3 {[%emt 0:00:10]} g6 {[%emt 0:00:00]} 3. g3 {[%emt 0:00:26]} Bg7 {[%emt 0:00:00]} 4. Bg2 {[%emt 0:00:08]} O-O {[%emt 0:00:00]} 5. O-O {[%emt 0:00:07]} d6 {[%emt 0:00:00]} 6. a4 {[%emt 0:00:28]} Na6 {[%emt 0:00:12]} 7. Re1 {[%emt 0:01:57]} d5 {[%emt 0:00:40]} 8. h3 {[%emt 0:08:44]} c5 {[%emt 0:03:45]} 9. Be3 {[%emt 0:07:35]} Ne4 {[%emt 0:12:32]} 10. Nbd2 {[%emt 0:05:28]} Nd6 {[%emt 0:02:44]} 11. Nb3 {[%emt 0:13:47]} Nc4 {[%emt 0:19:06]} 12. Bg5 {[%emt 0:06:51]} h6 {[%emt 0:09:56]} 13. Bc1 {[%emt 0:04:31]} cxd4 {[%emt 0:00:26]} 14. Nfxd4 {[%emt 0:01:41]} e5 {[%emt 0:01:50]} 15. Nb5 {[%emt 0:01:06]} e4 {[%emt 0:01:26]} 16. c3 {[%emt 0:05:31]} Re8 {[%emt 0:12:25]} 17. Nd2 {[%emt 0:04:10]} Ne5 {[%emt 0:06:55]} 18. Nf1 {[%emt 0:01:13]} Nb8 {[%emt 0:05:03]} 19. Ne3 {[%emt 0:06:50]} a6 {[%emt 0:01:12]} 20. Nd4 {[%emt 0:06:35]} Nbc6 {[%emt 0:05:53]} 21. Qb3 {[%emt 0:04:35]} Be6 {[%emt 0:09:37]} 22. Nxe6 {[%emt 0:01:14]} fxe6 {[%emt 0:00:02]} 23. Rd1 {[%emt 0:04:28]} Qc7 {[%emt 0:00:18]} 24. Nxd5 {[%emt 0:08:06]} exd5 {[%emt 0:00:02]} 25. Qxd5+ {[%emt 0:00:07]} Nf7 {[%emt 0:00:21]} 26. Bf4 {[%emt 0:01:05]} Qe7 {[%emt 0:00:21]} 27. h4 {[%emt 0:01:55]} h5 {[%emt 0:02:10]} 28. Bh3 {[%emt 0:01:28]} Kh7 {[%emt 0:00:44]} 29. Rac1 {[%emt 0:02:14]} Rad8 {[%emt 0:00:25]} 30. Qb3 {[%emt 0:00:13]} Bh6 {[%emt 0:00:29]} 31. Rxd8 {[%emt 0:01:55]} Rxd8 {[%emt 0:00:17]} 32. Be6 {[%emt 0:00:37]} Bxf4 {[%emt 0:00:36]} 0-1

[Event "106th British-ch Major 2019"]
[Site "Torquay"]
[Date "2019.08.01"]
[Round "6.2"]
[White "Pollack, Oscar"]
[Black "Taylor, Adam A"]
[Result "0-1"]
[ECO "B32"]
[WhiteElo "2088"]
[BlackElo "2168"]
[Annotator "NA"]
[PlyCount "56"]
[EventDate "2019.07.27"]
[EventType "swiss"]
[EventCountry "GBR"]
[SourceTitle "playchess.com"]
[Source "ChessBase"]
[SourceQuality "1"]
[TimeControl "40/5400+30:1800+30"]

1. e4 {[%emt 0:00:00]} c5 {[%emt 0:00:00]} 2. Nf3 {[%emt 0:00:00]} Nc6 {[%emt 0:00:00]} 3. d4 {[%emt 0:00:00]} cxd4 {[%emt 0:00:00]} 4. Nxd4 {[%emt 0:00:00]} e5 {[%emt 0:01:39]} 5. Nb5 {[%emt 0:00:00]} d6 {[%emt 0:00:21]} 6. N1c3 {[%emt 0:00:22]} a6 {[%emt 0:00:22]} 7. Na3 {[%emt 0:00:02]} b5 {[%emt 0:00:05]} 8. Nd5 {[%emt 0:00:06]} Nge7 {[%emt 0:00:04]} 9. c4 {[%emt 0:00:09]} Nd4 {[%emt 0:00:31]} 10. Be3 {[%emt 0:01:34]} Nxd5 {[%emt 0:01:36]} 11. cxd5 {[%emt 0:01:00]} g6 {[%emt 0:01:09]} 12. Bd3 {[%emt 0:03:48]} Bg7 {[%emt 0:00:09]} 13. O-O {[%emt 0:00:18]} O-O {[%emt 0:00:18]} 14. Qd2 {[%emt 0:01:51]} f5 {[%emt 0:07:34]} 15. Bxd4 {[%emt 0:02:57]} exd4 {[%emt 0:00:21]} 16. f4 {[%emt 0:02:09]} fxe4 {[%emt 0:07:44]} 17. Bxe4 {[%emt 0:00:05]} Bf5 {[%emt 0:00:04]} 18. Rae1 {[%emt 0:06:28]} Qb6 {[%emt 0:21:42]} 19. Qd3 {[%emt 0:05:44]} Bxe4 {[%emt 0:07:36]} 20. Rxe4 {[%emt 0:00:07]} Qc5 {[%emt 0:12:52]} 21. Nc2 {[%emt 0:20:18]} Qxd5 {[%emt 0:02:07]} 22. Nxd4 {[%emt 0:10:12]} Rfe8 {[%emt 0:30:16]} 23. Rxe8+ {[%emt 0:01:49]} Rxe8 {[%emt 0:00:04]} 24. Rd1 {[%emt 0:04:54]} Bxd4+ {[%emt 0:00:21]} 25. Kf1 {[%emt 0:01:10]} Re4 {[%emt 0:00:10]} 26. g3 {[%emt 0:00:09]} Qe6 {[%emt 0:00:15]} 27. Kg2 {[%emt 0:02:06]} Re2+ {[%emt 0:00:59]} 28. Kf1 {[%emt 0:00:11]} Rf2+ {[%emt 0:00:14]} 0-1

[Event "106th British-ch Major 2019"]
[Site "Torquay"]
[Date "2019.08.01"]
[Round "6.3"]
[White "Graham, David B"]
[Black "Ashworth, Michael J"]
[Result "1/2-1/2"]
[ECO "B23"]
[WhiteElo "2162"]
[BlackElo "1957"]
[Annotator "NA"]
[PlyCount "47"]
[EventDate "2019.07.27"]
[EventType "swiss"]
[EventCountry "GBR"]
[SourceTitle "playchess.com"]
[Source "ChessBase"]
[SourceQuality "1"]
[TimeControl "40/5400+30:1800+30"]

1. e4 {[%emt 0:00:00]} c5 {[%emt 0:00:00]} 2. Nc3 {[%emt 0:00:00]} Nc6 {[%emt 0:00:00]} 3. Bb5 {[%emt 0:00:00]} Nd4 {[%emt 0:00:22]} 4. Bc4 {[%emt 0:00:00]} g6 {[%emt 0:00:59]} 5. d3 {[%emt 0:01:49]} Bg7 {[%emt 0:01:07]} 6. Nf3 {[%emt 0:01:23]} e6 {[%emt 0:09:46]} 7. O-O {[%emt 0:01:32]} Ne7 {[%emt 0:01:06]} 8. Bg5 {[%emt 0:17:16]} h6 {[%emt 0:05:51]} 9. Bh4 {[%emt 0:00:27]} O-O {[%emt 0:01:33]} 10. e5 {[%emt 0:08:28]} Nxf3+ {[%emt 0:11:01]} 11. Qxf3 {[%emt 0:00:12]} Bxe5 {[%emt 0:01:16]} 12. Rfe1 {[%emt 0:12:31]} Bg7 {[%emt 0:09:55]} 13. Ne4 {[%emt 0:13:23]} d5 {[%emt 0:26:26]} 14. Nf6+ {[%emt 0:13:53]} Kh8 {[%emt 0:05:33]} 15. Nxd5 {[%emt 0:01:23]} g5 {[%emt 0:01:22]} 16. Nxe7 {[%emt 0:01:24]} Qxe7 {[%emt 0:02:46]} 17. Bg3 {[%emt 0:00:08]} Bxb2 {[%emt 0:06:04]} 18. Rab1 {[%emt 0:01:15]} Bc3 {[%emt 0:00:12]} 19. Be5+ {[%emt 0:05:55]} Bxe5 {[%emt 0:00:05]} 20. Rxe5 {[%emt 0:00:02]} Rb8 {[%emt 0:02:44]} 21. h4 {[%emt 0:03:13]} f6 {[%emt 0:02:43]} 22. Re3 {[%emt 0:00:43]} e5 {[%emt 0:02:26]} 23. hxg5 {[%emt 0:01:54]} hxg5 {[%emt 0:00:18]} 24. Kf1 {[%emt 0:07:48]} 1/2-1/2

[Event "106th British-ch Major 2019"]
[Site "Torquay"]
[Date "2019.08.01"]
[Round "6.4"]
[White "Cleary, Mark"]
[Black "Sugden, John N"]
[Result "1/2-1/2"]
[ECO "B12"]
[WhiteElo "2023"]
[BlackElo "2068"]
[Annotator "NA"]
[PlyCount "118"]
[EventDate "2019.07.27"]
[EventType "swiss"]
[EventCountry "GBR"]
[SourceTitle "playchess.com"]
[Source "ChessBase"]
[SourceQuality "1"]
[TimeControl "40/5400+30:1800+30"]

1. e4 {[%emt 0:00:00]} c6 {[%emt 0:00:00]} 2. d4 {[%emt 0:00:00]} d5 {[%emt 0:00:02]} 3. e5 {[%emt 0:00:10]} Bf5 {[%emt 0:00:12]} 4. h4 {[%emt 0:00:29]} h6 {[%emt 0:00:42]} 5. g4 {[%emt 0:01:16]} Bd7 {[%emt 0:00:30]} 6. h5 {[%emt 0:04:43]} c5 {[%emt 0:00:39]} 7. c3 {[%emt 0:05:36]} Nc6 {[%emt 0:01:37]} 8. Na3 {[%emt 0:02:13]} cxd4 {[%emt 0:27:10]} 9. cxd4 {[%emt 0:01:25]} Qb6 {[%emt 0:01:36]} 10. Nc2 {[%emt 0:03:45]} Nb4 {[%emt 0:02:35]} 11. Be2 {[%emt 0:36:18]} e6 {[%emt 0:13:10]} 12. Na3 {[%emt 0:08:33]} Ne7 {[%emt 0:07:36]} 13. Be3 {[%emt 0:05:37]} Nec6 {[%emt 0:01:39]} 14. f4 {[%emt 0:02:35]} a5 {[%emt 0:03:08]} 15. Nf3 {[%emt 0:01:43]} Na7 {[%emt 0:02:52]} 16. O-O {[%emt 0:01:41]} Nb5 {[%emt 0:03:31]} 17. Nc2 {[%emt 0:00:52]} Nxc2 {[%emt 0:03:51]} 18. Qxc2 {[%emt 0:00:06]} Na7 {[%emt 0:01:54]} 19. Rfc1 {[%emt 0:00:20]} Be7 {[%emt 0:05:55]} 20. Bd1 {[%emt 0:02:59]} Nc6 {[%emt 0:04:07]} 21. Qb3 {[%emt 0:01:17]} Qxb3 {[%emt 0:02:00]} 22. axb3 {[%emt 0:00:58]} Bb4 {[%emt 0:03:05]} 23. Bc2 {[%emt 0:00:47]} O-O {[%emt 0:03:54]} 24. Kg2 {[%emt 0:00:21]} Rac8 {[%emt 0:01:14]} 25. Bd3 {[%emt 0:03:52]} Na7 {[%emt 0:03:09]} 26. Rxc8 {[%emt 0:00:09]} Rxc8 {[%emt 0:00:11]} 27. Rc1 {[%emt 0:00:19]} Rxc1 {[%emt 0:00:18]} 28. Bxc1 {[%emt 0:00:06]} Bb5 {[%emt 0:01:11]} 29. Bc2 {[%emt 0:00:47]} Nc6 {[%emt 0:00:49]} 30. Kf2 {[%emt 0:00:14]} Be7 {[%emt 0:01:41]} 31. Ke3 {[%emt 0:03:15]} Bf1 {[%emt 0:01:00]} 32. Bd2 {[%emt 0:04:47]} Bd8 {[%emt 0:00:30]} 33. Bc3 {[%emt 0:00:33]} Bb6 {[%emt 0:00:22]} 34. Ne1 {[%emt 0:01:59]} Bh3 {[%emt 0:00:58]} 35. Bd1 {[%emt 0:00:26]} Bf1 {[%emt 0:00:11]} 36. Nc2 {[%emt 0:01:37]} f6 {[%emt 0:00:51]} 37. Be2 {[%emt 0:01:53]} Bxe2 {[%emt 0:00:09]} 38. Kxe2 {[%emt 0:00:05]} Kf7 {[%emt 0:00:25]} 39. Kd3 {[%emt 0:00:33]} g6 {[%emt 0:01:30]} 40. b4 {[%emt 0:02:24]} axb4 {[%emt 0:01:19]} 41. Bxb4 {[%emt 0:31:37]} gxh5 {[%emt 0:03:34]} 42. gxh5 {[%emt 0:00:00]} Bxd4 {[%emt 0:02:07]} 43. Nxd4 {[%emt 0:00:00]} Nxb4+ {[%emt 0:00:10]} 44. Kc3 {[%emt 0:00:00]} Nc6 {[%emt 0:01:19]} 45. Nf3 {[%emt 0:00:00]} fxe5 {[%emt 0:02:57]} 46. fxe5 {[%emt 0:00:00]} Ke7 {[%emt 0:01:49]} 47. b4 {[%emt 0:00:00]} Kd7 {[%emt 0:02:44]} 48. b5 {[%emt 0:00:00]} Ne7 {[%emt 0:01:02]} 49. Kb4 {[%emt 0:00:00]} Nf5 {[%emt 0:01:45]} 50. Kc5 {[%emt 0:00:00]} Kc7 {[%emt 0:00:43]} 51. Nh2 {[%emt 0:00:00]} Ng3 {[%emt 0:02:05]} 52. Ng4 {[%emt 0:00:00]} Ne4+ {[%emt 0:03:27]} 53. Kb4 {[%emt 0:00:31]} Kb6 {[%emt 0:01:26]} 54. Nf6 {[%emt 0:00:43]} Ng3 {[%emt 0:01:26]} 55. Nd7+ {[%emt 0:00:07]} Kc7 {[%emt 0:00:39]} 56. Nf6 {[%emt 0:00:06]} Ne2 {[%emt 0:04:44]} 57. Kc5 {[%emt 0:00:10]} b6+ {[%emt 0:01:52]} 58. Kb4 {[%emt 0:00:09]} Nd4 {[%emt 0:01:49]} 59. Ng4 {[%emt 0:00:57]} Nf5 {[%emt 0:00:26]} 1/2-1/2